[Event "*** Titled Tuesday Blitz"]
[Site "Chess.com"]
[Date "2021.02.09"]
[Round "10"]
[White "francyIM"]
[Black "Witik"]
[Result "0-1"]
[WhiteElo "2575"]
[BlackElo "2716"]
[TimeControl "180+1"]
[EndTime "11:53:59 PST"]
[Termination "Witik won by resignation"]

1. d4 {[%clk 0:03:00.8]} 1... d5 {[%clk 0:02:59.5]} 2. Nf3 {[%clk 0:03:00.1]}
2... e6 {[%clk 0:02:59.6]} 3. Bf4 {[%clk 0:03:00.2]} 3... Bd6 {[%clk 0:02:59.5]}
4. Bg3 {[%clk 0:03:00.5]} 4... f5 {[%clk 0:02:59.5]} 5. e3 {[%clk 0:03:00.4]}
5... Nf6 {[%clk 0:02:59.7]} 6. c4 {[%clk 0:02:59.1]} 6... O-O {[%clk 0:02:57.7]}
7. c5 {[%clk 0:02:58.3]} 7... Be7 {[%clk 0:02:54.6]} 8. Nbd2 {[%clk 0:02:56.2]}
8... Ne4 {[%clk 0:02:45.4]} 9. Rc1 {[%clk 0:02:54.9]} 9... Nd7 {[%clk
0:02:34.7]} 10. b4 {[%clk 0:02:49.2]} 10... c6 {[%clk 0:02:31.7]} 11. Nb3 {[%clk
0:02:49.1]} 11... Bf6 {[%clk 0:02:18.7]} 12. Bd3 {[%clk 0:02:42.6]} 12... Nxg3
{[%clk 0:01:49.7]} 13. hxg3 {[%clk 0:02:41.2]} 13... g6 {[%clk 0:01:48.3]} 14.
Be2 {[%clk 0:02:31.5]} 14... e5 {[%clk 0:01:41.4]} 15. dxe5 {[%clk 0:02:30.8]}
15... Nxe5 {[%clk 0:01:42.3]} 16. Nxe5 {[%clk 0:02:31.1]} 16... Bxe5 {[%clk
0:01:43.2]} 17. Kd2 {[%clk 0:02:32]} 17... a5 {[%clk 0:01:35.4]} 18. b5 {[%clk
0:02:24.1]} 18... cxb5 {[%clk 0:01:30.7]} 19. Nd4 {[%clk 0:02:12.6]} 19... a4
{[%clk 0:01:27.5]} 20. Qc2 {[%clk 0:02:06.2]} 20... b4 {[%clk 0:01:22.3]} 21.
Rb1 {[%clk 0:02:05.5]} 21... Qa5 {[%clk 0:01:19.3]} 22. Rb2 {[%clk 0:01:49.9]}
22... Re8 {[%clk 0:01:07.1]} 23. Bf3 {[%clk 0:01:44.5]} 23... Be6 {[%clk
0:00:50.8]} 24. Rhb1 {[%clk 0:01:42.1]} 24... b3+ {[%clk 0:00:46.8]} 25. Qc3
{[%clk 0:01:41.9]} 25... Qxc3+ {[%clk 0:00:34.5]} 26. Kxc3 {[%clk 0:01:42.8]}
26... Rec8 {[%clk 0:00:33.8]} 27. axb3 {[%clk 0:01:39.3]} 27... Rxc5+ {[%clk
0:00:33]} 28. Kb4 {[%clk 0:01:37.7]} 28... Bd6 {[%clk 0:00:25.3]} 29. bxa4
{[%clk 0:01:23.4]} 29... Bd7 {[%clk 0:00:21.7]} 30. Ra2 {[%clk 0:01:09.6]} 30...
Rc1+ {[%clk 0:00:19.8]} 0-1

[Event "*** Titled Tuesday Blitz"]
[Site "Chess.com"]
[Date "2021.02.09"]
[Round "10"]
[White "Loy_Konstantin"]
[Black "hypert"]
[Result "0-1"]
[WhiteElo "2380"]
[BlackElo "2513"]
[TimeControl "180+1"]
[EndTime "11:54:01 PST"]
[Termination "hypert won on time"]

1. e4 {[%clk 0:02:46.8]} 1... c5 {[%clk 0:02:59.6]} 2. Nf3 {[%clk 0:02:46.6]}
2... e6 {[%clk 0:03:00.2]} 3. d3 {[%clk 0:02:46.7]} 3... Nc6 {[%clk 0:02:59.9]}
4. g3 {[%clk 0:02:46.4]} 4... d5 {[%clk 0:02:59.9]} 5. Nbd2 {[%clk 0:02:45.9]}
5... Nf6 {[%clk 0:02:59.6]} 6. Bg2 {[%clk 0:02:46.4]} 6... Bd6 {[%clk
0:02:59.7]} 7. O-O {[%clk 0:02:46.8]} 7... O-O {[%clk 0:02:58.9]} 8. Re1 {[%clk
0:02:47.3]} 8... Qc7 {[%clk 0:02:55.4]} 9. c3 {[%clk 0:02:46.5]} 9... b5 {[%clk
0:02:53.8]} 10. Qe2 {[%clk 0:02:45.9]} 10... Be7 {[%clk 0:02:44]} 11. e5 {[%clk
0:02:43]} 11... Nd7 {[%clk 0:02:43.9]} 12. Nf1 {[%clk 0:02:43.4]} 12... b4
{[%clk 0:02:40.6]} 13. c4 {[%clk 0:02:31]} 13... dxc4 {[%clk 0:02:35.3]} 14.
dxc4 {[%clk 0:02:30.8]} 14... Bb7 {[%clk 0:02:35.2]} 15. b3 {[%clk 0:02:06.3]}
15... a5 {[%clk 0:02:32.5]} 16. h4 {[%clk 0:02:01.3]} 16... a4 {[%clk
0:02:32.2]} 17. Bg5 {[%clk 0:02:00.5]} 17... axb3 {[%clk 0:02:17.1]} 18. Bxe7
{[%clk 0:01:54.3]} 18... Nxe7 {[%clk 0:02:15.5]} 19. axb3 {[%clk 0:01:54.2]}
19... Rxa1 {[%clk 0:02:08.1]} 20. Rxa1 {[%clk 0:01:55.1]} 20... Bxf3 {[%clk
0:02:07.7]} 21. Bxf3 {[%clk 0:01:38.9]} 21... Nxe5 {[%clk 0:02:06.6]} 22. Be4
{[%clk 0:01:27.9]} 22... N5c6 {[%clk 0:02:03.1]} 23. Qh5 {[%clk 0:01:21.9]}
23... f5 {[%clk 0:02:02.2]} 24. Bxc6 {[%clk 0:01:15.6]} 24... Nxc6 {[%clk
0:02:00.4]} 25. Ne3 {[%clk 0:01:11.3]} 25... Nd4 {[%clk 0:01:58.7]} 26. Qd1
{[%clk 0:00:37.3]} 26... f4 {[%clk 0:01:54.2]} 27. Nf1 {[%clk 0:00:31.9]} 27...
fxg3 {[%clk 0:01:46.6]} 28. Nxg3 {[%clk 0:00:30.4]} 28... Qf4 {[%clk 0:01:43.8]}
29. Ra2 {[%clk 0:00:20.2]} 29... Nf3+ {[%clk 0:01:43.5]} 30. Kf1 {[%clk
0:00:18.5]} 30... Qxh4 {[%clk 0:01:35.5]} 31. Qd6 {[%clk 0:00:06.2]} 31... Qh3+
{[%clk 0:01:35.1]} 32. Ke2 {[%clk 0:00:05.7]} 32... Nd4+ {[%clk 0:01:34.4]} 33.
Ke3 {[%clk 0:00:02.4]} 33... Nf5+ {[%clk 0:01:28.5]} 0-1

[Event "*** Titled Tuesday Blitz"]
[Site "Chess.com"]
[Date "2021.02.09"]
[Round "10"]
[White "ri4mi"]
[Black "bylavochka"]
[Result "1-0"]
[WhiteElo "2337"]
[BlackElo "2086"]
[TimeControl "180+1"]
[EndTime "11:54:03 PST"]
[Termination "ri4mi won by resignation"]

1. d4 {[%clk 0:03:00.9]} 1... Nf6 {[%clk 0:02:59.9]} 2. Nc3 {[%clk 0:03:01]}
2... d5 {[%clk 0:02:59.3]} 3. Bf4 {[%clk 0:03:01.2]} 3... e6 {[%clk 0:02:57.5]}
4. e3 {[%clk 0:03:00.6]} 4... Be7 {[%clk 0:02:57.1]} 5. Nf3 {[%clk 0:03:00.3]}
5... O-O {[%clk 0:02:57.3]} 6. Bd3 {[%clk 0:03:00.3]} 6... c5 {[%clk 0:02:56.5]}
7. O-O {[%clk 0:02:59.8]} 7... Nc6 {[%clk 0:02:54.9]} 8. dxc5 {[%clk 0:02:55.1]}
8... Bxc5 {[%clk 0:02:53.8]} 9. e4 {[%clk 0:02:53.9]} 9... dxe4 {[%clk
0:02:43.6]} 10. Nxe4 {[%clk 0:02:54.8]} 10... Nxe4 {[%clk 0:02:42.1]} 11. Bxe4
{[%clk 0:02:55.7]} 11... Qxd1 {[%clk 0:02:35.1]} 12. Raxd1 {[%clk 0:02:54.4]}
12... f6 {[%clk 0:02:11.2]} 13. Bd6 {[%clk 0:02:46.7]} 13... Bxd6 {[%clk
0:02:02.9]} 14. Rxd6 {[%clk 0:02:47.6]} 14... e5 {[%clk 0:02:03.3]} 15. Bd5+
{[%clk 0:02:36.2]} 15... Kh8 {[%clk 0:02:01.9]} 16. Bxc6 {[%clk 0:02:36]} 16...
bxc6 {[%clk 0:02:01.5]} 17. Rxc6 {[%clk 0:02:35]} 17... Bg4 {[%clk 0:01:47.1]}
18. Nd2 {[%clk 0:02:13.1]} 18... Rfc8 {[%clk 0:01:44.6]} 19. Rc4 {[%clk
0:02:04.4]} 19... Rxc4 {[%clk 0:01:41.8]} 20. Nxc4 {[%clk 0:02:05.3]} 20... Be2
{[%clk 0:01:41.5]} 21. Ne3 {[%clk 0:02:00.3]} 21... Bxf1 {[%clk 0:01:41.1]} 22.
Kxf1 {[%clk 0:02:01.2]} 22... Kg8 {[%clk 0:01:39.2]} 23. Ke2 {[%clk 0:02:00.8]}
23... Kf7 {[%clk 0:01:39.4]} 24. c4 {[%clk 0:02:00.9]} 24... Ke6 {[%clk
0:01:39.6]} 25. Kd3 {[%clk 0:02:00.8]} 25... f5 {[%clk 0:01:35.5]} 26. b4 {[%clk
0:01:56.7]} 26... a5 {[%clk 0:01:25.4]} 27. b5 {[%clk 0:01:56.1]} 27... Kd6
{[%clk 0:01:24]} 28. Kc3 {[%clk 0:01:50.4]} 28... g6 {[%clk 0:01:20]} 29. a4
{[%clk 0:01:49.8]} 29... Kc5 {[%clk 0:01:19.4]} 30. Nf1 {[%clk 0:01:46.7]} 30...
Rd8 {[%clk 0:01:16.3]} 31. Nd2 {[%clk 0:01:46.5]} 31... e4 {[%clk 0:01:13.1]}
32. Nb3+ {[%clk 0:01:45.9]} 32... Kd6 {[%clk 0:01:11]} 33. Nxa5 {[%clk
0:01:41.4]} 33... Ra8 {[%clk 0:01:08.5]} 34. Kb4 {[%clk 0:01:39.5]} 34... f4
{[%clk 0:01:07.8]} 35. c5+ {[%clk 0:01:37.9]} 35... Kd5 {[%clk 0:01:06.2]} 36.
Nc4 {[%clk 0:01:33.1]} 36... Kd4 {[%clk 0:00:47.6]} 37. c6 {[%clk 0:01:28.9]}
37... e3 {[%clk 0:00:47]} 38. fxe3+ {[%clk 0:01:29.1]} 38... fxe3 {[%clk
0:00:47.3]} 39. Nxe3 {[%clk 0:01:29.1]} 39... Kxe3 {[%clk 0:00:48.2]} 40. b6
{[%clk 0:01:28.7]} 40... Kd4 {[%clk 0:00:46.9]} 41. b7 {[%clk 0:01:21]} 41...
Rb8 {[%clk 0:00:42.9]} 42. Kb5 {[%clk 0:01:20.8]} 42... Kd5 {[%clk 0:00:42.5]}
43. Kb6 {[%clk 0:01:17.2]} 1-0

[Event "*** Titled Tuesday Blitz"]
[Site "Chess.com"]
[Date "2021.02.09"]
[Round "10"]
[White "DonPreuss"]
[Black "NovikovaGalina"]
[Result "1-0"]
[WhiteElo "2263"]
[BlackElo "2374"]
[TimeControl "180+1"]
[EndTime "11:54:04 PST"]
[Termination "DonPreuss won by checkmate"]

1. d4 {[%clk 0:02:52.5]} 1... d5 {[%clk 0:02:59.8]} 2. e4 {[%clk 0:02:51.4]}
2... e6 {[%clk 0:02:59.7]} 3. Nc3 {[%clk 0:02:51.4]} 3... Bb4 {[%clk 0:02:59.6]}
4. exd5 {[%clk 0:02:50.7]} 4... exd5 {[%clk 0:03:00.5]} 5. Bd3 {[%clk
0:02:50.6]} 5... Nf6 {[%clk 0:03:00.7]} 6. Ne2 {[%clk 0:02:50.7]} 6... O-O
{[%clk 0:03:00.9]} 7. O-O {[%clk 0:02:51.2]} 7... Bg4 {[%clk 0:03:01.3]} 8. f3
{[%clk 0:02:51.1]} 8... Bh5 {[%clk 0:03:01.6]} 9. Ng3 {[%clk 0:02:51.7]} 9...
Bg6 {[%clk 0:03:01.8]} 10. f4 {[%clk 0:02:52.1]} 10... Bxd3 {[%clk 0:03:01.1]}
11. Qxd3 {[%clk 0:02:52.6]} 11... c5 {[%clk 0:03:01.3]} 12. dxc5 {[%clk
0:02:51.9]} 12... Bxc5+ {[%clk 0:03:02.2]} 13. Kh1 {[%clk 0:02:51.9]} 13... Ng4
{[%clk 0:02:37.9]} 14. Qf3 {[%clk 0:02:41.9]} 14... Nf6 {[%clk 0:02:26.9]} 15.
f5 {[%clk 0:02:22.7]} 15... Nc6 {[%clk 0:02:26.2]} 16. Bg5 {[%clk 0:02:22.4]}
16... Be7 {[%clk 0:02:25.5]} 17. Bxf6 {[%clk 0:02:20.8]} 17... Bxf6 {[%clk
0:02:26.4]} 18. Nxd5 {[%clk 0:02:20.4]} 18... Bxb2 {[%clk 0:02:26.3]} 19. f6
{[%clk 0:02:15]} 19... Bxa1 {[%clk 0:02:22.9]} 20. Rxa1 {[%clk 0:02:07.3]} 20...
Ne5 {[%clk 0:02:00.3]} 21. Ne7+ {[%clk 0:01:56.8]} 21... Kh8 {[%clk 0:01:40.6]}
22. fxg7+ {[%clk 0:01:52.5]} 22... Kxg7 {[%clk 0:01:41.5]} 23. Nh5+ {[%clk
0:01:43]} 23... Kh6 {[%clk 0:01:39.5]} 24. Qf6+ {[%clk 0:01:19.5]} 24... Ng6
{[%clk 0:01:38.1]} 25. Nf5+ {[%clk 0:00:28.7]} 25... Kxh5 {[%clk 0:01:36.1]} 26.
g4+ {[%clk 0:00:26.4]} 26... Kxg4 {[%clk 0:01:33.2]} 27. Rg1+ {[%clk 0:00:24.8]}
27... Kf4 {[%clk 0:01:24.5]} 28. Ne7+ {[%clk 0:00:20.4]} 28... Ke3 {[%clk
0:01:20.6]} 29. Rg3+ {[%clk 0:00:12.1]} 29... Kd2 {[%clk 0:01:20.9]} 30. Qc3+
{[%clk 0:00:10.3]} 30... Ke2 {[%clk 0:01:17.9]} 31. Re3+ {[%clk 0:00:08]} 31...
Kf2 {[%clk 0:01:16.3]} 32. Qe1# {[%clk 0:00:08.1]} 1-0

[Event "*** Titled Tuesday Blitz"]
[Site "Chess.com"]
[Date "2021.02.09"]
[Round "10"]
[White "HajiyevKanan"]
[Black "SHIVACalypso"]
[Result "1-0"]
[WhiteElo "2490"]
[BlackElo "2362"]
[TimeControl "180+1"]
[EndTime "11:54:06 PST"]
[Termination "HajiyevKanan won by resignation"]

1. d4 {[%clk 0:02:59.8]} 1... e6 {[%clk 0:03:00.1]} 2. Nf3 {[%clk 0:03:00.7]}
2... Nf6 {[%clk 0:02:58.4]} 3. c4 {[%clk 0:03:01.6]} 3... d5 {[%clk 0:02:58]} 4.
Nc3 {[%clk 0:03:02.5]} 4... Bb4 {[%clk 0:02:56.4]} 5. cxd5 {[%clk 0:03:03.4]}
5... exd5 {[%clk 0:02:55.8]} 6. Bg5 {[%clk 0:03:04.3]} 6... h6 {[%clk
0:02:52.5]} 7. Bxf6 {[%clk 0:03:00.8]} 7... Qxf6 {[%clk 0:02:53.4]} 8. Qa4+
{[%clk 0:03:01.2]} 8... Nc6 {[%clk 0:02:53.1]} 9. Ne5 {[%clk 0:03:01.8]} 9...
Bd7 {[%clk 0:02:40.3]} 10. Nxc6 {[%clk 0:02:59]} 10... Bxc3+ {[%clk 0:02:36.9]}
11. bxc3 {[%clk 0:02:59.9]} 11... Bxc6 {[%clk 0:02:37]} 12. Qa3 {[%clk
0:02:59.9]} 12... Qe7 {[%clk 0:02:35.9]} 13. Qxe7+ {[%clk 0:02:59.7]} 13... Kxe7
{[%clk 0:02:36.8]} 14. e3 {[%clk 0:03:00.4]} 14... Kd6 {[%clk 0:02:33.9]} 15.
Bd3 {[%clk 0:02:59.5]} 15... Rhe8 {[%clk 0:02:32.6]} 16. Kd2 {[%clk 0:02:58.4]}
16... Re7 {[%clk 0:02:30.2]} 17. Rab1 {[%clk 0:02:57.5]} 17... Rae8 {[%clk
0:02:30.3]} 18. h4 {[%clk 0:02:57.8]} 18... b6 {[%clk 0:02:25.7]} 19. Rhc1
{[%clk 0:02:43.7]} 19... Bd7 {[%clk 0:02:25.6]} 20. g3 {[%clk 0:02:30.2]} 20...
Bg4 {[%clk 0:02:15.9]} 21. c4 {[%clk 0:02:20.8]} 21... Bf3 {[%clk 0:02:07.3]}
22. c5+ {[%clk 0:02:19.8]} 22... Kd7 {[%clk 0:02:06]} 23. a4 {[%clk 0:02:15.1]}
23... Be4 {[%clk 0:02:03.1]} 24. cxb6 {[%clk 0:02:01.9]} 24... axb6 {[%clk
0:02:01.5]} 25. Bb5+ {[%clk 0:02:01.2]} 25... Kd6 {[%clk 0:01:57.9]} 26. Rc6+
{[%clk 0:01:44.2]} 26... Kd7 {[%clk 0:01:57.3]} 27. Rxb6+ {[%clk 0:01:41.9]}
27... Kc8 {[%clk 0:01:47.2]} 28. Rc1 {[%clk 0:01:31]} 28... Rd8 {[%clk
0:01:37.8]} 29. a5 {[%clk 0:01:15.4]} 29... Re6 {[%clk 0:01:31.3]} 30. Rbc6
{[%clk 0:00:46.8]} 30... Rxc6 {[%clk 0:01:28.8]} 31. Bxc6 {[%clk 0:00:47.2]}
31... Kb8 {[%clk 0:01:22.8]} 32. Rc5 {[%clk 0:00:46.1]} 32... Ka7 {[%clk
0:01:20.7]} 33. Rb5 {[%clk 0:00:42.5]} 33... Rd6 {[%clk 0:01:19.9]} 34. Rb7+
{[%clk 0:00:41.4]} 34... Ka6 {[%clk 0:01:19.9]} 35. Rxc7 {[%clk 0:00:41.7]}
35... Kxa5 {[%clk 0:01:20.1]} 36. Be8 {[%clk 0:00:39.3]} 36... Rb6 {[%clk
0:01:15.4]} 37. Ra7+ {[%clk 0:00:37.1]} 37... Kb4 {[%clk 0:01:14.8]} 38. Rxf7
{[%clk 0:00:36.9]} 38... Kc4 {[%clk 0:01:15.1]} 39. Rc7+ {[%clk 0:00:36]} 39...
Kb4 {[%clk 0:01:15]} 40. Rxg7 {[%clk 0:00:35.9]} 40... Ra6 {[%clk 0:01:15.7]}
41. Rb7+ {[%clk 0:00:30.3]} 41... Ka5 {[%clk 0:01:13.8]} 42. Rb5+ {[%clk
0:00:29.4]} 1-0

[Event "*** Titled Tuesday Blitz"]
[Site "Chess.com"]
[Date "2021.02.09"]
[Round "10"]
[White "TST2014"]
[Black "Murad_Ibrahimli"]
[Result "0-1"]
[WhiteElo "2580"]
[BlackElo "2719"]
[TimeControl "180+1"]
[EndTime "11:54:10 PST"]
[Termination "Murad_Ibrahimli won by checkmate"]

1. d4 {[%clk 0:03:00.9]} 1... g6 {[%clk 0:02:56.3]} 2. c4 {[%clk 0:02:58.4]}
2... Bg7 {[%clk 0:02:55.9]} 3. e4 {[%clk 0:02:57.5]} 3... d6 {[%clk 0:02:54.8]}
4. Nc3 {[%clk 0:02:56.4]} 4... Nf6 {[%clk 0:02:55.2]} 5. Nf3 {[%clk 0:02:55]}
5... O-O {[%clk 0:02:55.6]} 6. Be2 {[%clk 0:02:54.8]} 6... e5 {[%clk 0:02:55.8]}
7. O-O {[%clk 0:02:54.4]} 7... Bg4 {[%clk 0:02:56]} 8. d5 {[%clk 0:02:43.5]}
8... a5 {[%clk 0:02:53.3]} 9. Be3 {[%clk 0:02:41.1]} 9... Na6 {[%clk 0:02:51.3]}
10. Ne1 {[%clk 0:02:39.2]} 10... Bxe2 {[%clk 0:02:49.8]} 11. Qxe2 {[%clk
0:02:40.1]} 11... Nh5 {[%clk 0:02:49.9]} 12. Nd3 {[%clk 0:02:38.3]} 12... b6
{[%clk 0:02:44.9]} 13. b3 {[%clk 0:02:35.5]} 13... Nc5 {[%clk 0:02:26.3]} 14.
Rac1 {[%clk 0:02:19.3]} 14... Qh4 {[%clk 0:02:07.1]} 15. g3 {[%clk 0:02:16.1]}
15... Qh3 {[%clk 0:02:04.6]} 16. f3 {[%clk 0:02:09.1]} 16... Nxd3 {[%clk
0:02:01.9]} 17. Qxd3 {[%clk 0:02:08.2]} 17... f5 {[%clk 0:01:54.6]} 18. exf5
{[%clk 0:01:27.5]} 18... Nxg3 {[%clk 0:01:48.5]} 19. fxg6 {[%clk 0:01:05.7]}
19... Nxf1 {[%clk 0:01:44.7]} 20. gxh7+ {[%clk 0:01:05.2]} 20... Kh8 {[%clk
0:01:43.5]} 21. Rxf1 {[%clk 0:01:04]} 21... e4 {[%clk 0:01:34.9]} 22. Nxe4
{[%clk 0:00:53.4]} 22... Rxf3 {[%clk 0:01:16.3]} 23. Rxf3 {[%clk 0:00:44.9]}
23... Qxf3 {[%clk 0:01:14.7]} 24. Ng5 {[%clk 0:00:40.4]} 24... Qg4+ {[%clk
0:01:13.8]} 25. Kh1 {[%clk 0:00:40.9]} 25... Rf8 {[%clk 0:01:13.7]} 26. h3
{[%clk 0:00:31.1]} 26... Qg3 {[%clk 0:01:10]} 27. Qe2 {[%clk 0:00:17.5]} 27...
Be5 {[%clk 0:01:03.3]} 28. Ne6 {[%clk 0:00:12.3]} 28... Rf1+ {[%clk 0:01:00.9]}
29. Qxf1 {[%clk 0:00:10.2]} 29... Qh2# {[%clk 0:01:00.9]} 0-1

[Event "*** Titled Tuesday Blitz"]
[Site "Chess.com"]
[Date "2021.02.09"]
[Round "10"]
[White "Das_Virus_2020"]
[Black "CalinGheorghiu"]
[Result "1-0"]
[WhiteElo "2440"]
[BlackElo "2306"]
[TimeControl "180+1"]
[EndTime "11:54:11 PST"]
[Termination "Das_Virus_2020 won by resignation"]

1. e4 {[%clk 0:03:00.9]} 1... c5 {[%clk 0:02:58.8]} 2. c3 {[%clk 0:03:00.9]}
2... Nf6 {[%clk 0:02:58]} 3. e5 {[%clk 0:03:00.8]} 3... Nd5 {[%clk 0:02:58.5]}
4. Nf3 {[%clk 0:03:00.8]} 4... d6 {[%clk 0:02:58.4]} 5. d4 {[%clk 0:03:00.5]}
5... cxd4 {[%clk 0:02:58.3]} 6. cxd4 {[%clk 0:03:00.4]} 6... e6 {[%clk
0:02:58.3]} 7. a3 {[%clk 0:02:58.2]} 7... Nc6 {[%clk 0:02:57.8]} 8. Bd3 {[%clk
0:02:57.8]} 8... Be7 {[%clk 0:02:56.6]} 9. O-O {[%clk 0:02:57.1]} 9... O-O
{[%clk 0:02:55.5]} 10. Qe2 {[%clk 0:02:57.1]} 10... dxe5 {[%clk 0:02:53.6]} 11.
dxe5 {[%clk 0:02:56.5]} 11... Qc7 {[%clk 0:02:54.3]} 12. Qe4 {[%clk 0:02:43.8]}
12... g6 {[%clk 0:02:53.4]} 13. Bh6 {[%clk 0:02:43]} 13... Rd8 {[%clk
0:02:52.5]} 14. Nbd2 {[%clk 0:02:42.1]} 14... Bd7 {[%clk 0:02:49.9]} 15. Rfe1
{[%clk 0:02:01.3]} 15... Be8 {[%clk 0:02:48.5]} 16. Bg5 {[%clk 0:01:48.6]} 16...
Bxg5 {[%clk 0:02:04]} 17. Nxg5 {[%clk 0:01:48.1]} 17... Nde7 {[%clk 0:02:04.7]}
18. Nxh7 {[%clk 0:00:53.5]} 18... Kxh7 {[%clk 0:01:58.4]} 19. Qh4+ {[%clk
0:00:52.8]} 19... Kg8 {[%clk 0:01:45.9]} 20. Re3 {[%clk 0:00:37.1]} 20... Rxd3
{[%clk 0:01:36.4]} 21. Rxd3 {[%clk 0:00:35.6]} 21... Nf5 {[%clk 0:01:34.2]} 22.
Qg5 {[%clk 0:00:31.6]} 22... Nxe5 {[%clk 0:01:22.9]} 23. Rh3 {[%clk 0:00:30.6]}
23... Qe7 {[%clk 0:01:21.7]} 24. Qf4 {[%clk 0:00:26.9]} 24... Qd7 {[%clk
0:00:55.3]} 25. Qxe5 {[%clk 0:00:22.8]} 25... Kf8 {[%clk 0:00:46.8]} 26. Ne4
{[%clk 0:00:19.6]} 1-0

[Event "*** Titled Tuesday Blitz"]
[Site "Chess.com"]
[Date "2021.02.09"]
[Round "10"]
[White "platy3"]
[Black "Chessmasterzt"]
[Result "1-0"]
[WhiteElo "2845"]
[BlackElo "2615"]
[TimeControl "180+1"]
[EndTime "11:54:14 PST"]
[Termination "platy3 won on time"]

1. c4 {[%clk 0:02:32.7]} 1... g6 {[%clk 0:02:58.8]} 2. g3 {[%clk 0:02:33.2]}
2... Bg7 {[%clk 0:02:58.8]} 3. Bg2 {[%clk 0:02:34.1]} 3... d6 {[%clk 0:02:48.1]}
4. Nc3 {[%clk 0:02:35]} 4... Nf6 {[%clk 0:02:42.2]} 5. Nf3 {[%clk 0:02:35.3]}
5... O-O {[%clk 0:02:42.7]} 6. O-O {[%clk 0:02:34.8]} 6... Nc6 {[%clk 0:02:42]}
7. d4 {[%clk 0:02:34.6]} 7... e5 {[%clk 0:02:38.7]} 8. dxe5 {[%clk 0:02:32.7]}
8... dxe5 {[%clk 0:02:35.7]} 9. Bg5 {[%clk 0:02:32.7]} 9... Be6 {[%clk
0:01:51.4]} 10. Qc1 {[%clk 0:02:31.5]} 10... Qc8 {[%clk 0:01:39.8]} 11. Rd1
{[%clk 0:02:15.2]} 11... Nd7 {[%clk 0:01:29]} 12. Nd5 {[%clk 0:02:09.4]} 12...
Re8 {[%clk 0:01:23.7]} 13. Bh6 {[%clk 0:02:05.7]} 13... f6 {[%clk 0:01:16.7]}
14. Bxg7 {[%clk 0:02:04.3]} 14... Kxg7 {[%clk 0:01:17.6]} 15. b4 {[%clk
0:02:00.7]} 15... Bxd5 {[%clk 0:01:11.4]} 16. cxd5 {[%clk 0:02:01.6]} 16... Nxb4
{[%clk 0:01:11.5]} 17. Rb1 {[%clk 0:02:02.2]} 17... a5 {[%clk 0:00:56.6]} 18. a3
{[%clk 0:02:01.2]} 18... Na6 {[%clk 0:00:56.9]} 19. Bh3 {[%clk 0:02:01.4]} 19...
Nac5 {[%clk 0:00:52.3]} 20. d6 {[%clk 0:01:57.3]} 20... c6 {[%clk 0:00:46.3]}
21. Nd2 {[%clk 0:01:57.1]} 21... Ne6 {[%clk 0:00:43.7]} 22. Nc4 {[%clk
0:01:54.5]} 22... b5 {[%clk 0:00:43.4]} 23. Ne3 {[%clk 0:01:54.4]} 23... Nd4
{[%clk 0:00:38.3]} 24. Kf1 {[%clk 0:01:52.5]} 24... h5 {[%clk 0:00:34.3]} 25.
Nc2 {[%clk 0:01:48.5]} 25... Ne6 {[%clk 0:00:29.9]} 26. Ne3 {[%clk 0:01:39.5]}
26... Nd4 {[%clk 0:00:29]} 27. Qc3 {[%clk 0:01:35]} 27... Qd8 {[%clk 0:00:22.6]}
28. Nc2 {[%clk 0:01:26]} 28... c5 {[%clk 0:00:21.6]} 29. Nxd4 {[%clk 0:01:22]}
29... exd4 {[%clk 0:00:20.7]} 30. Qc2 {[%clk 0:01:20.3]} 30... b4 {[%clk
0:00:19.2]} 31. axb4 {[%clk 0:01:18.6]} 31... axb4 {[%clk 0:00:18.3]} 32. Ra1
{[%clk 0:01:19.3]} 32... Ne5 {[%clk 0:00:05.1]} 33. Qxc5 {[%clk 0:01:17.6]}
33... b3 {[%clk 0:00:02.5]} 34. Qxd4 {[%clk 0:01:17.1]} 1-0

[Event "*** Titled Tuesday Blitz"]
[Site "Chess.com"]
[Date "2021.02.09"]
[Round "10"]
[White "mr65"]
[Black "Rytenko_V"]
[Result "1-0"]
[WhiteElo "2107"]
[BlackElo "2376"]
[TimeControl "180+1"]
[EndTime "11:54:22 PST"]
[Termination "mr65 won by resignation"]

1. e4 {[%clk 0:02:40.8]} 1... e6 {[%clk 0:02:55.1]} 2. d4 {[%clk 0:02:39.7]}
2... d5 {[%clk 0:02:56]} 3. Nc3 {[%clk 0:02:38.9]} 3... Bb4 {[%clk 0:02:55.5]}
4. e5 {[%clk 0:02:38.9]} 4... Ne7 {[%clk 0:02:55.7]} 5. a3 {[%clk 0:02:38.4]}
5... Bxc3+ {[%clk 0:02:55.5]} 6. bxc3 {[%clk 0:02:38.4]} 6... b6 {[%clk
0:02:56.4]} 7. Bb5+ {[%clk 0:02:36.9]} 7... c6 {[%clk 0:02:56.2]} 8. Bd3 {[%clk
0:02:32]} 8... Ba6 {[%clk 0:02:56.7]} 9. Nf3 {[%clk 0:02:31.7]} 9... h6 {[%clk
0:02:56.1]} 10. O-O {[%clk 0:02:30.6]} 10... O-O {[%clk 0:02:55.7]} 11. Nh4
{[%clk 0:02:23.9]} 11... c5 {[%clk 0:02:48.4]} 12. dxc5 {[%clk 0:02:17.8]} 12...
bxc5 {[%clk 0:02:44.2]} 13. g3 {[%clk 0:02:17.3]} 13... Qb6 {[%clk 0:02:32.8]}
14. Be3 {[%clk 0:02:04.2]} 14... Nbc6 {[%clk 0:02:28.5]} 15. f4 {[%clk
0:01:48.9]} 15... Qa5 {[%clk 0:02:23.3]} 16. Qd2 {[%clk 0:01:41.7]} 16... Rfd8
{[%clk 0:02:13]} 17. Rae1 {[%clk 0:01:28.2]} 17... Rab8 {[%clk 0:01:28.4]} 18.
f5 {[%clk 0:01:24.6]} 18... Nxf5 {[%clk 0:01:09.8]} 19. Nxf5 {[%clk 0:01:17.7]}
19... exf5 {[%clk 0:01:09]} 20. Rxf5 {[%clk 0:01:11]} 20... d4 {[%clk
0:00:57.5]} 21. Bxh6 {[%clk 0:01:07.5]} 21... Qxc3 {[%clk 0:00:20.7]} 22. Qg5
{[%clk 0:00:45.1]} 22... Qxe1+ {[%clk 0:00:19.9]} 23. Kg2 {[%clk 0:00:44.1]}
23... g6 {[%clk 0:00:15.4]} 24. Qf6 {[%clk 0:00:42.8]} 24... Qd2+ {[%clk
0:00:14.2]} 25. Bxd2 {[%clk 0:00:40.6]} 1-0